[Event "Vastgota Open 2023"]
[Site "Skara stadshotell, Jarnvagsgatan 5, Skara, Sweden"]
[Date "2023.02.18"]
[Round "4.5"]
[White "Andersson, Fredrik"]
[Black "Chatalbashev, Boris"]
[Result "0-1"]
[TimeControl "15 minutes + 5 seconds per move from move one (Round 1 - 2) / 30 minutes + 10 seconds per move from move one (Round 3 - 9)"]
[WhiteTitle "FM"]
[BlackTitle "GM"]
[WhiteFideId "1706187"]
[BlackFideId "2900440"]
[WhiteElo "2194"]
[BlackElo "2522"]

1. e4 {[%clk 00:30:17]} {[%emt 00:00:02]} g6 {[%clk 00:30:18]} {[%emt
00:00:02]} 2. d4 {[%clk 00:30:24]} {[%emt 00:00:04]} Bg7 {[%clk 00:30:27]}
{[%emt 00:00:01]} 3. Nc3 {[%clk 00:30:24]} {[%emt 00:00:10]} d6 {[%clk
00:30:35]} {[%emt 00:00:01]} 4. Nf3 {[%clk 00:30:20]} {[%emt 00:00:14]} Nf6
{[%clk 00:30:42]} {[%emt 00:00:03]} 5. Be2 {[%clk 00:30:02]} {[%emt 00:00:28]}
O-O {[%clk 00:30:49]} {[%emt 00:00:03]} 6. O-O {[%clk 00:30:07]} {[%emt
00:00:06]} c6 {[%clk 00:30:37]} {[%emt 00:00:22]} 7. a4 {[%clk 00:29:52]}
{[%emt 00:00:25]} Nbd7 {[%clk 00:30:44]} {[%emt 00:00:02]} 8. h3 {[%clk
00:29:52]} {[%emt 00:00:11]} e5 {[%clk 00:30:21]} {[%emt 00:00:33]} 9. dxe5
{[%clk 00:29:31]} {[%emt 00:00:30]} dxe5 {[%clk 00:30:29]} {[%emt 00:00:02]} 10.
Be3 {[%clk 00:29:32]} {[%emt 00:00:09]} Qe7 {[%clk 00:30:36]} {[%emt 00:00:03]}
11. Qd3 {[%clk 00:27:32]} {[%emt 00:02:10]} Nc5 {[%clk 00:27:56]} {[%emt
00:02:49]} 12. Qc4 {[%clk 00:27:30]} {[%emt 00:00:13]} b6 {[%clk 00:27:37]}
{[%emt 00:00:29]} 13. a5 {[%clk 00:26:49]} {[%emt 00:00:52]} Be6 {[%clk
00:27:23]} {[%emt 00:00:24]} 14. Qb4 {[%clk 00:26:47]} {[%emt 00:00:12]} Nfd7
{[%clk 00:26:54]} {[%emt 00:00:39]} 15. Ng5 {[%clk 00:25:29]} {[%emt 00:01:28]}
b5 {[%clk 00:24:00]} {[%emt 00:03:03]} 16. Nxe6 {[%clk 00:24:18]} {[%emt
00:01:21]} fxe6 {[%clk 00:24:07]} {[%emt 00:00:02]} 17. Rfd1 {[%clk 00:23:26]}
{[%emt 00:01:03]} Rf7 {[%clk 00:24:16]} {[%emt 00:00:02]} 18. Rd2 {[%clk
00:22:33]} {[%emt 00:01:03]} Bf8 {[%clk 00:24:13]} {[%emt 00:00:12]} 19. a6
{[%clk 00:19:08]} {[%emt 00:03:35]} Qd8 {[%clk 00:22:04]} {[%emt 00:02:19]} 20.
Bg4 {[%clk 00:16:39]} {[%emt 00:02:39]} h5 {[%clk 00:21:24]} {[%emt 00:00:50]}
21. Be2 {[%clk 00:12:37]} {[%emt 00:04:12]} Qb6 {[%clk 00:15:44]} {[%emt
00:05:50]} 22. Bf3 {[%clk 00:09:12]} {[%emt 00:03:35]} Nxa6 {[%clk 00:13:24]}
{[%emt 00:02:30]} 23. Bxb6 {[%clk 00:09:00]} {[%emt 00:00:22]} Nxb4 {[%clk
00:11:56]} {[%emt 00:01:38]} 24. Ba5 {[%clk 00:08:07]} {[%emt 00:01:03]} Bc5
{[%clk 00:11:38]} {[%emt 00:00:28]} 25. Ne2 {[%clk 00:07:26]} {[%emt 00:00:52]}
Na6 {[%clk 00:10:42]} {[%emt 00:01:05]} 26. Bc3 {[%clk 00:06:33]} {[%emt
00:01:03]} Nb4 {[%clk 00:09:05]} {[%emt 00:01:47]} 27. Rad1 {[%clk 00:06:26]}
{[%emt 00:00:17]} Nb6 {[%clk 00:09:01]} {[%emt 00:00:14]} 28. b3 {[%clk
00:05:54]} {[%emt 00:00:43]} a5 {[%clk 00:08:10]} {[%emt 00:01:00]} 29. Bxe5
{[%clk 00:05:54]} {[%emt 00:00:11]} a4 {[%clk 00:08:14]} {[%emt 00:00:06]} 30.
c3 {[%clk 00:05:25]} {[%emt 00:00:40]} Na6 {[%clk 00:08:21]} {[%emt 00:00:02]}
31. Nd4 {[%clk 00:04:11]} {[%emt 00:01:24]} axb3 {[%clk 00:07:59]} {[%emt
00:00:32]} 32. Nxb3 {[%clk 00:04:06]} {[%emt 00:00:15]} Nc4 {[%clk 00:07:36]}
{[%emt 00:00:32]} 33. Rd8+ {[%clk 00:04:06]} {[%emt 00:00:10]} Rxd8 {[%clk
00:07:10]} {[%emt 00:00:36]} 34. Rxd8+ {[%clk 00:04:15]} {[%emt 00:00:02]} Rf8
{[%clk 00:07:18]} {[%emt 00:00:02]} 35. Rxf8+ {[%clk 00:03:54]} {[%emt
00:00:30]} Bxf8 {[%clk 00:07:08]} {[%emt 00:00:19]} 36. Bf6 {[%clk 00:03:25]}
{[%emt 00:00:41]} e5 {[%clk 00:04:56]} {[%emt 00:02:22]} 37. Be2 {[%clk
00:02:45]} {[%emt 00:00:50]} Kf7 {[%clk 00:05:04]} {[%emt 00:00:01]} 38. Bd8
{[%clk 00:02:47]} {[%emt 00:00:08]} Nd6 {[%clk 00:04:37]} {[%emt 00:00:37]} 39.
f3 {[%clk 00:02:50]} {[%emt 00:00:07]} Be7 {[%clk 00:03:29]} {[%emt 00:01:18]}
40. Bb6 {[%clk 00:02:51]} {[%emt 00:00:10]} Ke6 {[%clk 00:03:19]} {[%emt
00:00:20]} 41. Na5 {[%clk 00:02:47]} {[%emt 00:00:14]} c5 {[%clk 00:02:46]}
{[%emt 00:00:43]} 42. Kf2 {[%clk 00:02:26]} {[%emt 00:00:30]} Kd7 {[%clk
00:02:30]} {[%emt 00:00:26]} 43. g3 {[%clk 00:02:15]} {[%emt 00:00:22]} h4
{[%clk 00:02:22]} {[%emt 00:00:18]} 44. Nb3 {[%clk 00:01:47]} {[%emt 00:00:38]}
Kc6 {[%clk 00:02:21]} {[%emt 00:00:11]} 45. Ba5 {[%clk 00:01:55]} {[%emt
00:00:02]} Nb7 {[%clk 00:02:18]} {[%emt 00:00:13]} 46. c4 {[%clk 00:01:51]}
{[%emt 00:00:14]} b4 {[%clk 00:02:17]} {[%emt 00:00:10]} 47. f4 {[%clk
00:01:57]} {[%emt 00:00:05]} Nb8 {[%clk 00:02:03]} {[%emt 00:00:24]} 48. fxe5
{[%clk 00:01:51]} {[%emt 00:00:16]} Nd7 {[%clk 00:01:58]} {[%emt 00:00:14]} 49.
gxh4 {[%clk 00:01:43]} {[%emt 00:00:19]} Bxh4+ {[%clk 00:01:54]} {[%emt
00:00:13]} 50. Kf3 {[%clk 00:01:50]} {[%emt 00:00:04]} Nxe5+ {[%clk 00:02:00]}
{[%emt 00:00:03]} 51. Kf4 {[%clk 00:01:55]} {[%emt 00:00:05]} Bf6 {[%clk
00:01:42]} {[%emt 00:00:28]} 52. Bf1 {[%clk 00:01:36]} {[%emt 00:00:29]} Nd6
{[%clk 00:01:41]} {[%emt 00:00:11]} 53. Nd2 {[%clk 00:01:36]} {[%emt 00:00:10]}
g5+ {[%clk 00:01:39]} {[%emt 00:00:12]} 54. Kg3 {[%clk 00:01:31]} {[%emt
00:00:16]} Kb7 {[%clk 00:01:35]} {[%emt 00:00:13]} 55. Nb3 {[%clk 00:01:25]}
{[%emt 00:00:17]} Nxe4+ {[%clk 00:01:13]} {[%emt 00:00:32]} 56. Kh2 {[%clk
00:01:34]} Nf3+ {[%clk 00:01:19]} {[%emt 00:00:04]} 57. Kh1 {[%clk 00:01:41]}
{[%emt 00:00:03]} Kc6 {[%clk 00:01:16]} {[%emt 00:00:13]} 58. Be2 {[%clk
00:01:38]} {[%emt 00:00:14]} Ng3+ {[%clk 00:01:11]} {[%emt 00:00:15]} 59. Kg2
{[%clk 00:01:46]} {[%emt 00:00:01]} Nxe2 {[%clk 00:01:19]} {[%emt 00:00:03]} 60.
Kxf3 {[%clk 00:01:55]} {[%emt 00:00:01]} Nc3 {[%clk 00:01:17]} {[%emt
00:00:11]} 61. Kg4 {[%clk 00:01:57]} {[%emt 00:00:08]} Na4 {[%clk 00:01:06]}
{[%emt 00:00:21]} 62. Kf5 {[%clk 00:02:02]} {[%emt 00:00:06]} Be7 {[%clk
00:00:37]} {[%emt 00:00:39]} 63. Ke6 {[%clk 00:02:01]} {[%emt 00:00:11]} Bd6
{[%clk 00:00:44]} {[%emt 00:00:02]} 64. Bd8 {[%clk 00:02:02]} {[%emt 00:00:09]}
Bf4 {[%clk 00:00:44]} {[%emt 00:00:11]} 65. Kf5 {[%clk 00:02:11]} {[%emt
00:00:01]} Nb2 {[%clk 00:00:42]} {[%emt 00:00:11]} 66. Bxg5 {[%clk 00:02:19]}
{[%emt 00:00:03]} Bxg5 {[%clk 00:00:47]} {[%emt 00:00:05]} 67. Kxg5 {[%clk
00:02:28]} {[%emt 00:00:01]} Nxc4 {[%clk 00:00:55]} {[%emt 00:00:02]} 68. h4
{[%clk 00:02:32]} {[%emt 00:00:07]} Nd6 {[%clk 00:00:51]} {[%emt 00:00:13]} 69.
h5 {[%clk 00:02:31]} {[%emt 00:00:11]} c4 {[%clk 00:01:00]} {[%emt 00:00:01]}
70. Nd4+ {[%clk 00:02:07]} {[%emt 00:00:33]} Kd5 {[%clk 00:01:09]} {[%emt
00:00:02]} 71. Kf6 {[%clk 00:01:41]} {[%emt 00:00:36]} Ne4+ {[%clk 00:00:50]}
{[%emt 00:00:29]} 72. Kg6 {[%clk 00:01:41]} {[%emt 00:00:10]} b3 {[%clk
00:00:25]} {[%emt 00:00:35]} 73. Nxb3 {[%clk 00:01:26]} {[%emt 00:00:26]} cxb3
{[%clk 00:00:33]} {[%emt 00:00:01]} 74. h6 {[%clk 00:01:35]} b2 {[%clk
00:00:17]} {[%emt 00:00:26]} 75. h7 {[%clk 00:01:44]} {[%emt 00:00:01]} b1=Q
{[%clk 00:00:25]} {[%emt 00:00:03]} 76. h8=Q {[%clk 00:01:52]} Nd6+ {[%emt
00:01:53]} 0-1

[Event "Vastgota Open 2023"]
[Site "Skara stadshotell, Jarnvagsgatan 5, Skara, Sweden"]
[Date "2023.02.18"]
[Round "4.6"]
[White "Miezis, Normunds"]
[Black "Bernhard, Jonathan"]
[Result "1-0"]
[TimeControl "15 minutes + 5 seconds per move from move one (Round 1 - 2) / 30 minutes + 10 seconds per move from move one (Round 3 - 9)"]
[WhiteTitle "GM"]
[WhiteFideId "11600136"]
[BlackFideId "1720236"]
[WhiteElo "2502"]
[BlackElo "1920"]

1. c4 {[%clk 00:30:17]} {[%emt 00:00:02]} e5 {[%clk 00:30:09]} {[%emt
00:00:12]} 2. Nc3 {[%clk 00:30:19]} {[%emt 00:00:07]} Nf6 {[%clk 00:30:16]}
{[%emt 00:00:03]} 3. g3 {[%clk 00:30:24]} {[%emt 00:00:07]} c6 {[%clk
00:30:07]} {[%emt 00:00:19]} 4. Nf3 {[%clk 00:30:19]} {[%emt 00:00:14]} e4
{[%clk 00:30:11]} {[%emt 00:00:06]} 5. Nd4 {[%clk 00:30:24]} {[%emt 00:00:05]}
Qb6 {[%clk 00:30:02]} {[%emt 00:00:18]} 6. e3 {[%clk 00:30:06]} {[%emt
00:00:29]} d5 {[%clk 00:29:57]} {[%emt 00:00:15]} 7. Bg2 {[%clk 00:27:45]}
{[%emt 00:02:31]} Bb4 {[%clk 00:27:56]} {[%emt 00:02:11]} 8. cxd5 {[%clk
00:27:06]} {[%emt 00:00:49]} Bxc3 {[%clk 00:25:46]} {[%emt 00:02:20]} 9. bxc3
{[%clk 00:27:07]} {[%emt 00:00:08]} cxd5 {[%clk 00:25:53]} {[%emt 00:00:04]} 10.
Ba3 {[%clk 00:26:57]} {[%emt 00:00:21]} Qa6 {[%clk 00:25:32]} {[%emt 00:00:30]}
11. Qb3 {[%clk 00:26:46]} {[%emt 00:00:21]} Nc6 {[%clk 00:25:27]} {[%emt
00:00:16]} 12. Bf1 {[%clk 00:24:17]} {[%emt 00:02:38]} Qb6 {[%clk 00:25:21]}
{[%emt 00:00:17]} 13. Nb5 {[%clk 00:23:50]} {[%emt 00:00:36]} Be6 {[%clk
00:24:55]} {[%emt 00:00:35]} 14. Nd6+ {[%clk 00:23:14]} {[%emt 00:00:48]} Kd7
{[%clk 00:24:39]} {[%emt 00:00:25]} 15. Nxb7 {[%clk 00:22:59]} {[%emt
00:00:25]} Ne5 {[%clk 00:23:45]} {[%emt 00:01:04]} 16. Nc5+ {[%clk 00:22:09]}
{[%emt 00:01:00]} Kc7 {[%clk 00:21:37]} {[%emt 00:02:19]} 17. h3 {[%clk
00:21:35]} {[%emt 00:00:43]} Nf3+ {[%clk 00:21:08]} {[%emt 00:00:39]} 18. Kd1
{[%clk 00:21:40]} {[%emt 00:00:05]} Nd7 {[%clk 00:20:30]} {[%emt 00:00:49]} 19.
Nxe6+ {[%clk 00:16:34]} {[%emt 00:05:15]} fxe6 {[%clk 00:20:23]} {[%emt
00:00:16]} 20. Be2 {[%clk 00:16:15]} {[%emt 00:00:30]} Nde5 {[%clk 00:18:27]}
{[%emt 00:02:06]} 21. Kc2 {[%clk 00:15:29]} {[%emt 00:00:56]} Rhc8 {[%clk
00:17:57]} {[%emt 00:00:39]} 22. Rhb1 {[%clk 00:13:49]} {[%emt 00:01:51]} Kd8
{[%clk 00:16:28]} {[%emt 00:01:39]} 23. Qa4 {[%clk 00:13:10]} {[%emt 00:00:49]}
Qc7 {[%clk 00:15:23]} {[%emt 00:01:16]} 24. Qb4 {[%clk 00:12:49]} {[%emt
00:00:31]} Qf7 {[%clk 00:09:18]} {[%emt 00:06:14]} 25. Qd6+ {[%clk 00:12:33]}
{[%emt 00:00:26]} Nd7 {[%clk 00:09:15]} {[%emt 00:00:13]} 26. Rb7 {[%clk
00:12:15]} {[%emt 00:00:27]} Nfe5 {[%clk 00:07:49]} {[%emt 00:01:36]} 27. Rab1
{[%clk 00:10:32]} {[%emt 00:01:54]} a6 {[%clk 00:07:25]} {[%emt 00:00:34]} 28.
R1b6 {[%clk 00:09:44]} {[%emt 00:00:58]} 1-0

[Event "Vastgota Open 2023"]
[Site "Skara stadshotell, Jarnvagsgatan 5, Skara, Sweden"]
[Date "2023.02.18"]
[Round "4.7"]
[White "Bellon Lopez, Juan Manuel"]
[Black "Eklund, Lars-Goran"]
[Result "1-0"]
[TimeControl "15 minutes + 5 seconds per move from move one (Round 1 - 2) / 30 minutes + 10 seconds per move from move one (Round 3 - 9)"]
[WhiteTitle "GM"]
[BlackTitle "FM"]
[WhiteFideId "2200031"]
[BlackFideId "1701010"]
[WhiteElo "2318"]
[BlackElo "2196"]

1. d4 {[%clk 00:30:19]} d5 {[%clk 00:30:09]} {[%emt 00:00:11]} 2. Bf4 {[%clk
00:30:26]} {[%emt 00:00:03]} e6 {[%clk 00:29:22]} {[%emt 00:00:57]} 3. e3
{[%clk 00:30:28]} {[%emt 00:00:08]} Nf6 {[%clk 00:29:01]} {[%emt 00:00:31]} 4.
Nf3 {[%clk 00:30:32]} {[%emt 00:00:06]} c5 {[%clk 00:27:56]} {[%emt 00:01:15]}
5. c3 {[%clk 00:30:41]} {[%emt 00:00:02]} Nc6 {[%clk 00:27:52]} {[%emt
00:00:13]} 6. Nbd2 {[%clk 00:30:48]} {[%emt 00:00:03]} Bd6 {[%clk 00:23:32]}
{[%emt 00:04:30]} 7. Bg3 {[%clk 00:30:47]} {[%emt 00:00:11]} cxd4 {[%clk
00:23:11]} {[%emt 00:00:31]} 8. exd4 {[%clk 00:30:52]} {[%emt 00:00:05]} Ne4
{[%clk 00:21:46]} {[%emt 00:01:36]} 9. Nxe4 {[%clk 00:29:18]} {[%emt 00:01:43]}
dxe4 {[%clk 00:21:54]} {[%emt 00:00:02]} 10. Ne5 {[%clk 00:29:04]} {[%emt
00:00:23]} O-O {[%clk 00:17:07]} {[%emt 00:04:58]} 11. Nxc6 {[%clk 00:26:29]}
{[%emt 00:02:45]} bxc6 {[%clk 00:17:15]} {[%emt 00:00:02]} 12. Qa4 {[%clk
00:25:33]} {[%emt 00:01:05]} Bb7 {[%clk 00:14:25]} {[%emt 00:03:01]} 13. Ba6
{[%clk 00:24:21]} {[%emt 00:01:23]} Bxa6 {[%clk 00:12:29]} {[%emt 00:02:05]} 14.
Qxa6 {[%clk 00:24:28]} {[%emt 00:00:02]} Qc7 {[%clk 00:12:15]} {[%emt
00:00:25]} 15. O-O {[%clk 00:20:44]} {[%emt 00:03:53]} Bxg3 {[%clk 00:09:57]}
{[%emt 00:02:28]} 16. hxg3 {[%clk 00:20:43]} {[%emt 00:00:12]} Rab8 {[%clk
00:09:16]} {[%emt 00:00:51]} 17. b4 {[%clk 00:19:42]} {[%emt 00:01:10]} Rb5
{[%clk 00:07:26]} {[%emt 00:02:01]} 18. a4 {[%clk 00:19:36]} {[%emt 00:00:16]}
Rg5 {[%clk 00:05:11]} {[%emt 00:02:25]} 19. Rae1 {[%clk 00:16:46]} {[%emt
00:03:00]} f5 {[%clk 00:04:58]} {[%emt 00:00:23]} 20. Re3 {[%clk 00:15:44]}
{[%emt 00:01:12]} Rf6 {[%clk 00:03:50]} {[%emt 00:01:19]} 21. f4 {[%clk
00:15:21]} {[%emt 00:00:33]} Rg4 {[%clk 00:03:03]} {[%emt 00:00:57]} 22. b5
{[%clk 00:14:54]} {[%emt 00:00:36]} cxb5 {[%clk 00:01:52]} {[%emt 00:01:21]} 23.
Qxb5 {[%clk 00:15:02]} {[%emt 00:00:02]} g5 {[%clk 00:01:37]} {[%emt 00:00:25]}
24. Qe5 {[%clk 00:12:06]} {[%emt 00:03:06]} Qg7 {[%clk 00:00:50]} {[%emt
00:00:57]} 25. d5 {[%clk 00:10:14]} {[%emt 00:02:02]} gxf4 {[%clk 00:00:24]}
{[%emt 00:00:36]} 26. Rxf4 {[%clk 00:04:57]} {[%emt 00:05:27]} Rxf4 {[%clk
00:00:21]} {[%emt 00:00:13]} 27. gxf4 {[%clk 00:04:46]} {[%emt 00:00:21]} exd5
{[%clk 00:00:18]} {[%emt 00:00:14]} 28. Qxd5+ {[%clk 00:04:49]} 1-0

[Event "Vastgota Open 2023"]
[Site "Skara stadshotell, Jarnvagsgatan 5, Skara, Sweden"]
[Date "2023.02.18"]
[Round "4.8"]
[White "Rasti, Arvin"]
[Black "Ernst, Thomas"]
[Result "1-0"]
[TimeControl "15 minutes + 5 seconds per move from move one (Round 1 - 2) / 30 minutes + 10 seconds per move from move one (Round 3 - 9)"]
[BlackTitle "GM"]
[WhiteFideId "1741160"]
[BlackFideId "1700065"]
[WhiteElo "2179"]
[BlackElo "2315"]

1. d4 {[%clk 00:30:08]} {[%emt 00:00:11]} Nf6 {[%clk 00:30:17]} {[%emt
00:00:02]} 2. Nf3 {[%clk 00:30:16]} {[%emt 00:00:02]} g6 {[%clk 00:30:24]}
{[%emt 00:00:04]} 3. c4 {[%clk 00:30:23]} {[%emt 00:00:03]} Bg7 {[%clk
00:30:30]} {[%emt 00:00:04]} 4. g3 {[%clk 00:30:31]} {[%emt 00:00:02]} c6
{[%clk 00:30:35]} {[%emt 00:00:05]} 5. Bg2 {[%clk 00:30:31]} {[%emt 00:00:10]}
d5 {[%clk 00:30:41]} {[%emt 00:00:04]} 6. cxd5 {[%clk 00:30:31]} {[%emt
00:00:10]} cxd5 {[%clk 00:30:49]} {[%emt 00:00:03]} 7. O-O {[%clk 00:30:39]}
{[%emt 00:00:02]} O-O {[%clk 00:30:53]} {[%emt 00:00:05]} 8. Nc3 {[%clk
00:30:39]} {[%emt 00:00:11]} Ne4 {[%clk 00:30:34]} {[%emt 00:00:28]} 9. Nxe4
{[%clk 00:29:43]} {[%emt 00:01:06]} dxe4 {[%clk 00:30:42]} {[%emt 00:00:03]} 10.
Ne5 {[%clk 00:29:05]} {[%emt 00:00:48]} Nd7 {[%clk 00:30:45]} {[%emt 00:00:06]}
11. Nxd7 {[%clk 00:25:03]} {[%emt 00:04:13]} Qxd7 {[%clk 00:30:50]} {[%emt
00:00:04]} 12. Bxe4 {[%clk 00:24:52]} {[%emt 00:00:21]} Qxd4 {[%clk 00:30:49]}
{[%emt 00:00:12]} 13. Qxd4 {[%clk 00:24:50]} {[%emt 00:00:11]} Bxd4 {[%clk
00:30:56]} {[%emt 00:00:03]} 14. Rd1 {[%clk 00:24:53]} {[%emt 00:00:08]} Bg7
{[%clk 00:29:57]} {[%emt 00:01:08]} 15. Rb1 {[%clk 00:24:39]} {[%emt 00:00:24]}
Rb8 {[%clk 00:26:21]} {[%emt 00:03:46]} 16. b3 {[%clk 00:24:06]} {[%emt
00:00:43]} b6 {[%clk 00:25:46]} {[%emt 00:00:44]} 17. Ba3 {[%clk 00:24:01]}
{[%emt 00:00:16]} Bb7 {[%clk 00:25:09]} {[%emt 00:00:47]} 18. Bf3 {[%clk
00:23:19]} {[%emt 00:00:52]} Bxf3 {[%clk 00:24:58]} {[%emt 00:00:22]} 19. exf3
{[%clk 00:23:27]} {[%emt 00:00:01]} Rb7 {[%clk 00:25:01]} {[%emt 00:00:07]} 20.
Rbc1 {[%clk 00:23:17]} {[%emt 00:00:20]} Bf6 {[%clk 00:24:33]} {[%emt
00:00:38]} 21. Rc6 {[%clk 00:22:44]} {[%emt 00:00:43]} Re8 {[%clk 00:23:01]}
{[%emt 00:01:42]} 22. Rdc1 {[%clk 00:19:57]} {[%emt 00:02:58]} Rd7 {[%clk
00:21:20]} {[%emt 00:01:49]} 23. Re1 {[%clk 00:18:35]} {[%emt 00:01:33]} Kg7
{[%clk 00:18:29]} {[%emt 00:03:00]} 24. Re2 {[%clk 00:18:11]} {[%emt 00:00:35]}
Red8 {[%clk 00:18:21]} {[%emt 00:00:17]} 25. Bb4 {[%clk 00:17:52]} {[%emt
00:00:29]} Rd1+ {[%clk 00:17:47]} {[%emt 00:00:45]} 26. Kg2 {[%clk 00:17:59]}
{[%emt 00:00:04]} R8d7 {[%clk 00:17:47]} {[%emt 00:00:09]} 27. f4 {[%clk
00:17:11]} {[%emt 00:00:58]} h6 {[%clk 00:16:51]} {[%emt 00:01:07]} 28. Rec2
{[%clk 00:15:38]} {[%emt 00:01:42]} Ra1 {[%clk 00:16:03]} {[%emt 00:00:57]} 29.
Rc8 {[%clk 00:14:37]} {[%emt 00:01:13]} Rad1 {[%clk 00:14:04]} {[%emt
00:02:07]} 30. h4 {[%clk 00:13:30]} {[%emt 00:01:18]} a5 {[%clk 00:13:08]}
{[%emt 00:01:06]} 31. Ba3 {[%clk 00:13:36]} {[%emt 00:00:04]} R1d2 {[%clk
00:12:30]} {[%emt 00:00:48]} 32. Bc1 {[%clk 00:12:56]} {[%emt 00:00:50]} Rxc2
{[%clk 00:12:19]} {[%emt 00:00:21]} 33. Rxc2 {[%clk 00:13:04]} {[%emt
00:00:02]} a4 {[%clk 00:10:46]} {[%emt 00:01:42]} 34. bxa4 {[%clk 00:12:50]}
{[%emt 00:00:26]} Rd4 {[%clk 00:10:49]} {[%emt 00:00:06]} 35. Be3 {[%clk
00:12:58]} {[%emt 00:00:02]} Rxa4 {[%clk 00:10:54]} {[%emt 00:00:05]} 36. Bxb6
{[%clk 00:13:04]} {[%emt 00:00:04]} e5 {[%clk 00:10:56]} {[%emt 00:00:09]} 37.
fxe5 {[%clk 00:12:59]} {[%emt 00:00:15]} Bxe5 {[%clk 00:11:04]} {[%emt
00:00:01]} 38. Be3 {[%clk 00:13:06]} {[%emt 00:00:02]} h5 {[%clk 00:10:57]}
{[%emt 00:00:18]} 39. Kf3 {[%clk 00:13:07]} {[%emt 00:00:09]} Bd4 {[%clk
00:10:50]} {[%emt 00:00:18]} 40. Bxd4+ {[%clk 00:13:06]} {[%emt 00:00:11]} Rxd4
{[%clk 00:10:58]} {[%emt 00:00:02]} 41. Ke3 {[%clk 00:13:14]} {[%emt 00:00:02]}
Ra4 {[%clk 00:11:04]} {[%emt 00:00:04]} 42. Kd3 {[%clk 00:13:19]} {[%emt
00:00:05]} Kf6 {[%clk 00:11:02]} {[%emt 00:00:12]} 43. Kc3 {[%clk 00:13:27]}
{[%emt 00:00:01]} Kf5 {[%clk 00:10:59]} {[%emt 00:00:13]} 44. Kb3 {[%clk
00:13:34]} {[%emt 00:00:03]} Ra8 {[%clk 00:11:06]} {[%emt 00:00:03]} 45. Rc4
{[%clk 00:13:30]} {[%emt 00:00:14]} f6 {[%clk 00:11:08]} {[%emt 00:00:09]} 46.
a4 {[%clk 00:13:34]} {[%emt 00:00:05]} g5 {[%clk 00:11:12]} {[%emt 00:00:06]}
47. Kb4 {[%clk 00:12:27]} {[%emt 00:01:17]} Rb8+ {[%clk 00:11:17]} {[%emt
00:00:06]} 48. Ka3 {[%clk 00:10:59]} {[%emt 00:01:39]} Rd8 {[%clk 00:10:43]}
{[%emt 00:00:42]} 49. a5 {[%clk 00:10:58]} {[%emt 00:00:11]} Rd1 {[%clk
00:10:23]} {[%emt 00:00:31]} 50. Kb4 {[%clk 00:10:19]} {[%emt 00:00:48]} Rb1+
{[%clk 00:09:31]} {[%emt 00:01:02]} 51. Kc5 {[%clk 00:10:05]} {[%emt 00:00:23]}
Ra1 {[%clk 00:09:14]} {[%emt 00:00:28]} 52. Kb5 {[%clk 00:10:02]} {[%emt
00:00:12]} Rf1 {[%clk 00:07:47]} {[%emt 00:01:38]} 53. a6 {[%clk 00:09:52]}
{[%emt 00:00:21]} Rxf2 {[%clk 00:07:52]} {[%emt 00:00:05]} 54. a7 {[%clk
00:09:58]} {[%emt 00:00:04]} Rb2+ {[%clk 00:07:48]} {[%emt 00:00:13]} 55. Rb4
{[%clk 00:09:46]} {[%emt 00:00:23]} Ra2 {[%clk 00:07:54]} {[%emt 00:00:04]} 56.
Ra4 {[%clk 00:09:54]} {[%emt 00:00:01]} Rb2+ {[%clk 00:08:02]} {[%emt
00:00:02]} 57. Ka6 {[%clk 00:10:01]} {[%emt 00:00:02]} 1-0

[Event "Vastgota Open 2023"]
[Site "Skara stadshotell, Jarnvagsgatan 5, Skara, Sweden"]
[Date "2023.02.18"]
[Round "4.9"]
[White "Moborn, Anders"]
[Black "Sivuk, Vitaly"]
[Result "0-1"]
[TimeControl "15 minutes + 5 seconds per move from move one (Round 1 - 2) / 30 minutes + 10 seconds per move from move one (Round 3 - 9)"]
[BlackTitle "GM"]
[WhiteFideId "1706349"]
[BlackFideId "14116502"]
[WhiteElo "2003"]
[BlackElo "2502"]

1. d4 {[%clk 00:30:18]} Nf6 {[%clk 00:30:18]} {[%emt 00:00:02]} 2. c4 {[%clk
00:30:27]} {[%emt 00:00:03]} e6 {[%clk 00:30:26]} {[%emt 00:00:01]} 3. Nc3
{[%clk 00:30:31]} {[%emt 00:00:06]} Bb4 {[%clk 00:30:34]} {[%emt 00:00:02]} 4.
Qc2 {[%clk 00:30:13]} {[%emt 00:00:28]} b6 {[%clk 00:30:41]} {[%emt 00:00:03]}
5. Bg5 {[%clk 00:29:49]} {[%emt 00:00:32]} Bb7 {[%clk 00:30:46]} {[%emt
00:00:06]} 6. f3 {[%clk 00:29:35]} {[%emt 00:00:25]} h6 {[%clk 00:30:18]}
{[%emt 00:00:38]} 7. Bh4 {[%clk 00:29:43]} {[%emt 00:00:02]} c5 {[%clk
00:30:20]} {[%emt 00:00:07]} 8. a3 {[%clk 00:29:18]} {[%emt 00:00:36]} Bxc3+
{[%clk 00:30:08]} {[%emt 00:00:21]} 9. Qxc3 {[%clk 00:29:05]} {[%emt 00:00:24]}
cxd4 {[%clk 00:30:07]} {[%emt 00:00:11]} 10. Qxd4 {[%clk 00:28:57]} {[%emt
00:00:18]} Nc6 {[%clk 00:30:13]} {[%emt 00:00:03]} 11. Qd6 {[%clk 00:27:44]}
{[%emt 00:01:23]} Na5 {[%clk 00:29:22]} {[%emt 00:01:02]} 12. e4 {[%clk
00:27:38]} {[%emt 00:00:16]} Nxe4 {[%clk 00:29:13]} {[%emt 00:00:19]} 13. Bxd8
{[%clk 00:25:20]} {[%emt 00:02:29]} Nxd6 {[%clk 00:29:20]} {[%emt 00:00:01]}
0-1